bitfinex-derivatives/quotes_ETHF0:USTF0_20250909
["timestamp","ask_amount","ask_price","bid_price","bid_amount"]
[1757379981804,1.24186786,4307.7,4307.6,1.47314359]
[1757379985812,1.24186786,4307.7,4307.6,1.78884359]
[1757379986106,1.24186786,4307.7,4307.6,1.47314359]
[1757379987309,1.24186786,4307.7,4307.6,1.78884359]
[1757379989613,1.24186786,4307.7,4307.3,1.49944359]
[1757379989812,0.7251,4307.4,4307.3,2.23204359]
[1757379990106,0.7251,4307.4,4307.3,0.4417]
[1757379990310,1.23602427,4307.4,4307.3,0.7574]
[1757379990906,1.23602427,4307.4,4307.3,2.23204359]
[1757379993212,0.1192,4308.0,4307.3,2.23204359]
[1757379993414,0.7251,4307.8,4307.7,0.2077]
[1757379993614,1.2364484,4307.8,4307.7,0.5234]
[1757379994513,1.36307676,4308.5,4307.8,0.3157]
[1757379994514,0.3028,4308.5,4307.8,0.3157]
[1757379994720,0.5164,4308.5,4308.4,1.99804359]
[1757379995017,0.7251,4308.5,4308.4,1.99804359]
[1757379997512,0.5164,4308.5,4308.4,1.99804359]
[1757379997813,0.6864,4308.9,4308.8,0.4169]
[1757379998015,0.17,4308.9,4308.8,1.99804359]
[1757379999413,0.17,4308.9,4308.8,2.23204359]
[1757380001317,0.17,4308.9,4308.8,7.49748718]
[1757380001513,3.2078,4309.6,4309.5,0.7326]
[1757380001714,3.7242,4309.6,4309.5,1.99804359]
[1757380002021,3.9329,4309.6,4309.5,1.99804359]
[1757380002215,3.2078,4309.6,4309.5,1.99804359]
[1757380002910,3.7242,4309.6,4309.5,1.99804359]
[1757380003117,0.234,4310.4,4309.5,1.99804359]
[1757380003118,3.2078,4310.1,4309.5,1.99804359]
[1757380003316,0.5164,4309.9,4309.8,1.99804359]
[1757380003916,0.7251,4309.9,4309.8,1.99804359]
[1757380004622,0.5164,4309.9,4309.8,1.99804359]
[1757380005123,3.7242,4310.1,4310.0,0.7326]
[1757380006715,3.2078,4310.1,4310.0,1.0851]
[1757380006919,0.2964,4310.6,4310.0,1.0851]
[1757380007120,0.6373,4310.5,4310.4,2.00354359]
[1757380007427,0.8392,4310.5,4310.4,2.00354359]
[1757380008334,0.8392,4310.5,4310.4,1.68074359]
[1757380009827,0.8392,4310.5,4310.0,0.5568]
[1757380009828,0.5428,4310.5,4310.2,1.26544359]
[1757380010036,0.7138,4310.4,4310.3,0.2149]
[1757380010533,0.4174,4310.4,4310.0,0.5568]
[1757380010738,0.7138,4310.1,4310.0,0.4489]
[1757380011928,0.1254,4310.5,4309.8,3.2078]
[1757380011929,0.4158,4310.0,4309.8,3.2078]
[1757380012232,0.4158,4310.0,4309.6,1.26544359]
[1757380012233,0.7138,4309.8,4309.7,0.234]
[1757380012431,0.7138,4309.8,4309.7,0.4489]
[1757380012829,0.7138,4309.8,4309.7,0.6493]
[1757380013340,0.7138,4309.8,4309.7,0.9721]
[1757380014334,0.7138,4309.8,4309.7,0.6493]
[1757380014541,0.7138,4309.8,4309.7,0.234]
[1757380016539,0.1194,4309.5,4309.3,1.26544359]
[1757380016738,0.4174,4309.4,4309.3,1.49944359]
[1757380016928,0.7138,4309.4,4309.3,0.234]
[1757380017628,0.7138,4309.4,4309.3,0.9721]
[1757380017936,0.1194,4310.0,4309.3,0.9721]
[1757380018238,0.7138,4309.9,4309.8,1.48034359]
[1757380018437,0.7138,4309.9,4309.8,0.2149]
[1757380019232,0.7138,4309.9,4309.8,0.4153]
[1757380019430,0.7138,4309.9,4309.8,0.7381]
[1757380020541,0.5119,4309.9,4309.8,0.7381]
[1757380021438,1.0,4310.1,4310.0,0.3334]
[1757380021642,1.0,4310.1,4310.0,2.34973652]
[1757380021844,0.8332,4309.5,4309.4,0.7381]
[1757380022045,0.8332,4309.5,4309.4,0.9721]
[1757380022342,0.7138,4309.5,4309.4,0.9721]
[1757380022539,0.5119,4309.5,4309.4,0.9721]
[1757380023133,0.5119,4309.5,4309.4,2.46523652]
[1757380024344,0.8332,4309.5,4309.4,2.46523652]
[1757380024945,0.8332,4309.5,4309.4,0.9721]
[1757380025136,0.8332,4309.5,4309.4,0.6493]
[1757380025533,0.8332,4309.5,4309.4,0.7381]
[1757380025742,0.8332,4309.5,4309.4,0.9721]
[1757380027832,0.8332,4309.5,4309.4,0.6493]
[1757380028054,0.2964,4309.4,4309.2,3.4418]
[1757380028240,0.7138,4309.3,4309.2,3.6567]
[1757380028938,0.7138,4309.3,4309.2,3.8571]
[1757380029645,0.7138,4309.3,4309.2,0.234]
[1757380030739,0.7138,4309.3,4309.2,0.4489]
[1757380031342,0.7138,4309.3,4309.2,0.6493]
[1757380032148,0.7138,4309.3,4309.2,0.9721]
[1757380032651,0.7138,4309.3,4309.2,0.6493]
[1757380033145,1.02717479,4309.3,4309.2,0.9721]
[1757380033538,0.51527479,4309.3,4309.2,0.9721]
[1757380033745,3.2078,4309.8,4309.3,0.3228]
[1757380033951,1.02707286,4309.7,4309.6,0.7381]
[1757380034449,1.22897286,4309.7,4309.6,0.7381]
[1757380035546,1.02707286,4309.7,4309.6,0.7381]
[1757380036849,1.22897286,4309.7,4309.6,0.7381]
[1757380037152,1.22897286,4309.7,4309.6,0.4153]
[1757380038551,0.7138,4309.7,4309.6,0.717]
[1757380038751,0.7138,4309.7,4309.6,0.4153]
[1757380039751,0.7138,4309.7,4309.5,0.234]
[1757380040245,0.7372,4309.7,4309.6,0.718]
[1757380041148,0.7372,4309.7,4309.6,0.4163]
[1757380041349,1.25269884,4309.7,4309.6,0.4163]
[1757380042654,1.25269884,4309.7,4309.6,0.2008]
[1757380043152,0.7372,4309.7,4309.6,0.2008]
[1757380043959,0.5353,4309.7,4309.6,0.718]
[1757380044451,0.7379,4309.7,4309.6,0.718]
[1757380045851,0.7379,4309.7,4309.6,0.2008]
[1757380046060,0.4181,4309.7,4309.6,0.4163]
[1757380046355,0.7379,4309.7,4309.6,0.718]
[1757380048057,0.7379,4309.7,4309.6,0.4163]
[1757380048457,0.7379,4309.7,4309.6,0.718]
[1757380048759,0.7379,4309.7,4309.6,0.4163]
[1757380050862,0.7379,4309.7,4309.6,0.718]
[1757380051159,0.7379,4309.7,4309.6,0.4163]
[1757380052262,0.7379,4309.7,4309.6,0.718]
[1757380054459,0.1194,4310.0,4309.6,0.718]
[1757380054655,0.6454,4310.0,4309.9,2.21113652]
[1757380055449,0.7286,4310.0,4309.9,2.21113652]
[1757380055657,0.526,4310.0,4309.9,2.21113652]
[1757380055863,0.8457,4310.0,4309.9,2.21113652]
[1757380059657,0.7286,4310.0,4309.9,2.21113652]
[1757380060769,0.526,4310.0,4309.9,2.21113652]
[1757380060970,3.3332,4310.5,4309.9,2.21113652]
[1757380060971,0.3198,4310.3,4310.0,0.718]
[1757380061266,1.526,4310.1,4310.0,0.952]
[1757380061566,1.7286,4310.1,4310.0,0.952]
[1757380064070,1.7286,4310.1,4310.0,0.4348]
[1757380064370,1.7286,4310.1,4310.0,0.234]
[1757380066668,1.7286,4310.1,4310.0,0.4348]
[1757380067270,0.4128,4309.7,4309.6,3.2078]
[1757380067575,0.4128,4309.7,4309.6,4.70093652]
[1757380067576,0.7235,4309.7,4309.6,4.70093652]
[1757380067963,0.7235,4309.7,4309.6,4.93493652]
[1757380068468,0.7235,4309.7,4309.6,5.13163652]
[1757380069568,0.7235,4309.7,4309.6,1.92383652]
[1757380072074,0.7235,4309.3,4309.2,2.20423652]
[1757380072372,0.7235,4309.3,4309.2,2.43823652]
[1757380072867,0.3107,4309.9,4309.8,0.7111]
[1757380073073,1.0,4310.1,4310.0,0.8296]
[1757380073270,1.0,4310.1,4310.0,1.0636]
[1757380073974,1.0,4310.1,4310.0,0.8296]
[1757380074177,1.5118,4310.1,4310.0,0.9451]
[1757380074870,1.7235,4310.1,4310.0,0.9451]
[1757380075173,1.7235,4310.1,4310.0,0.6386]
[1757380075369,2.23985974,4310.1,4310.0,0.4307]
[1757380075871,1.3107,4310.1,4310.0,0.9451]
[1757380076474,1.0,4310.1,4310.0,1.0636]
[1757380079077,1.3107,4310.1,4310.0,1.0636]
[1757380079376,1.5118,4310.1,4310.0,0.9451]
[1757380080376,1.7235,4310.1,4310.0,2.2087569]
[1757380080877,1.5118,4310.1,4310.0,2.2087569]
[1757380081373,1.7235,4310.1,4310.0,2.2087569]
[1757380081579,1.7235,4310.1,4310.0,1.9022569]
[1757380082772,1.7235,4310.1,4310.0,1.4976569]
[1757380082972,2.23908482,4310.1,4310.0,1.6943569]
[1757380083172,1.7235,4310.1,4310.0,1.4976569]
[1757380083565,1.7235,4310.1,4310.0,1.6943569]
[1757380083766,1.7235,4310.1,4310.0,1.9022569]
[1757380083973,1.7235,4310.1,4310.0,2.2087569]
[1757380084874,1.7235,4310.1,4310.0,1.9022569]
[1757380085070,1.7235,4310.1,4310.0,1.6943569]
[1757380085375,0.7235,4309.7,4309.6,3.2078]
[1757380085575,0.7235,4309.7,4309.6,4.9021569]
[1757380085976,0.7235,4309.7,4309.6,5.4165569]
[1757380086377,0.5118,4309.7,4309.6,5.4165569]
[1757380087980,0.7235,4309.7,4309.6,5.4165569]
[1757380089382,0.5118,4309.7,4309.6,5.4165569]
[1757380089682,0.3107,4309.7,4309.6,5.4165569]
[1757380090282,0.3107,4309.9,4309.8,0.4046]
[1757380090483,1.0,4310.1,4310.0,0.4046]
[1757380090676,1.0,4310.1,4310.0,0.9451]
[1757380090876,1.0,4310.1,4309.6,3.2078]
[1757380090877,0.7235,4309.7,4309.6,3.4045]
[1757380091171,0.7235,4309.7,4309.6,4.9021569]
[1757380093076,0.7235,4309.7,4309.6,5.4165569]
[1757380093772,0.7235,4309.7,4309.6,5.1825569]
[1757380093979,0.7235,4309.7,4309.6,5.4165569]
[1757380094589,0.7235,4309.7,4309.6,5.1100569]
[1757380094777,0.7235,4309.7,4309.6,4.9021569]
[1757380096481,0.7235,4309.7,4309.6,5.1100569]
[1757380096688,0.7235,4309.7,4309.6,5.4197569]
[1757380099393,0.7235,4309.7,4309.6,5.1100569]
[1757380102692,1.3039,4310.1,4310.0,0.734]
[1757380102884,1.3039,4310.1,4310.0,0.968]
[1757380103392,1.5187,4310.1,4310.0,0.968]
[1757380103987,1.5187,4310.1,4310.0,0.6583]
[1757380103988,1.7166,4310.1,4310.0,0.6583]
[1757380104187,1.7166,4310.1,4310.0,0.4444]
[1757380104387,1.7166,4310.1,4310.0,0.234]
[1757380104589,1.7166,4310.1,4309.9,1.2636569]
[1757380104790,1.7166,4310.1,4310.0,0.4444]
[1757380105795,0.7166,4309.6,4309.2,1.67188622]
[1757380105990,0.4127,4309.4,4309.3,0.4444]
[1757380106187,0.7166,4309.4,4309.3,0.4444]
[1757380106584,0.7166,4309.4,4309.2,1.2636569]
[1757380106792,0.7166,4309.2,4309.1,3.2078]
[1757380108788,0.7166,4309.2,4309.0,0.23748008]
[1757380108990,4.7166,4309.2,4309.0,0.00348008]
[1757380109186,0.23207,4309.1,4309.0,0.00348008]
[1757380109390,0.7166,4309.1,4309.0,0.00348008]
[1757380110196,0.9506,4309.1,4309.0,0.00348008]
[1757380110391,0.9506,4309.1,4309.0,2.00113698]
[1757380110792,0.9506,4309.1,4309.0,0.73748008]
[1757380111000,0.9506,4309.1,4309.0,0.42778008]
[1757380111195,0.9506,4309.1,4309.0,0.73748008]
[1757380112193,0.9506,4309.1,4309.0,0.42778008]
[1757380112794,0.9506,4309.1,4309.0,0.21388008]
[1757380114993,0.9506,4309.1,4309.0,0.42778008]
[1757380115198,0.9506,4309.1,4309.0,0.73748008]
[1757380115402,0.5379,4309.1,4309.0,0.73748008]
[1757380115603,0.7527,4309.1,4309.0,0.73748008]
[1757380116391,0.5187,4309.1,4309.0,0.73748008]
[1757380119105,0.7166,4309.1,4309.0,0.21388008]
[1757380119604,0.7166,4309.1,4309.0,0.00348008]
[1757380128006,1.23084051,4309.1,4309.0,0.00348008]
[1757380128502,1.23084051,4309.1,4309.0,0.70758008]
[1757380128707,1.23084051,4309.1,4309.0,1.97123698]
[1757380128898,1.23084051,4309.1,4309.0,1.66113698]
[1757380130405,1.23084051,4309.1,4309.0,0.00348008]
[1757380133112,0.7166,4309.1,4309.0,0.00348008]
[1757380134014,0.7166,4309.1,4308.5,3.2078]
[1757380134015,0.4127,4309.1,4308.5,3.2078]
[1757380134214,0.7142,4308.6,4308.5,3.2078]
[1757380135609,0.7142,4308.6,4308.5,3.4038]
[1757380135911,0.7142,4308.6,4308.5,0.196]
[1757380136800,0.7142,4308.6,4308.5,0.7041]
[1757380138614,0.5186,4308.6,4308.5,0.7041]
[1757380141414,0.7142,4308.6,4308.5,0.7041]
[1757380141610,0.7142,4308.6,4308.5,0.196]
[1757380141810,0.4071,4308.3,4308.2,0.5061]
[1757380142010,0.7142,4308.3,4308.2,0.43]
[1757380142416,0.7142,4308.3,4308.2,0.9381]
[1757380142716,0.4071,4308.3,4308.0,1.67188622]
[1757380142918,0.835,4308.0,4307.9,3.2078]
[1757380145312,0.835,4308.0,4307.9,3.4038]
[1757380147623,0.835,4308.0,4307.9,3.9119]
[1757380148320,0.835,4308.0,4307.9,0.394]
[1757380148521,0.835,4307.5,4307.4,3.6018]
[1757380148824,0.835,4307.5,4307.4,4.1459]
[1757380149424,0.7142,4307.5,4307.4,4.1459]
[1757380149719,0.5186,4307.5,4307.4,4.1459]
[1757380151417,0.00348008,4307.9,4307.8,0.3101]
[1757380151617,0.00348008,4307.9,4307.8,2.43196193]
[1757380154316,0.52208008,4307.9,4307.8,0.7041]
[1757380154518,0.71768008,4307.9,4307.8,0.9381]
[1757380154829,0.52208008,4307.9,4307.8,0.9381]
[1757380155432,0.00348008,4307.9,4307.8,0.9381]
[1757380156831,0.49768008,4307.9,4307.8,0.9381]
[1757380158927,0.71008008,4307.9,4307.8,0.9381]
[1757380159615,0.49768008,4307.9,4307.8,0.9381]
[1757380161928,0.71008008,4307.9,4307.8,0.394]
[1757380162136,0.71008008,4307.9,4307.8,0.628]
[1757380162332,0.71008008,4307.9,4307.8,0.9297]
[1757380164231,0.49768008,4307.9,4307.8,0.9297]
[1757380164432,0.71008008,4307.9,4307.8,0.9297]
[1757380165131,0.71008008,4307.9,4307.8,0.234]
[1757380165332,0.71008008,4307.9,4307.7,0.234]
[1757380166528,0.1178,4307.5,4307.4,3.4226]
[1757380166735,0.4942,4307.4,4307.3,0.234]
[1757380166927,0.4143,4307.0,4306.9,33.7287]
[1757380167131,0.4143,4307.0,4306.9,33.9627]
[1757380167326,0.4942,4307.0,4306.9,0.9656]
[1757380169131,0.8244,4307.0,4306.9,0.6639]
[1757380169338,0.8244,4307.0,4306.9,0.4488]
[1757380170638,0.8244,4307.0,4306.9,0.9656]
[1757380171026,0.1178,4307.5,4306.9,0.9656]
[1757380171226,0.8244,4307.5,4307.4,0.2148]
[1757380171438,1.3403211,4307.5,4307.4,0.2148]
[1757380172032,1.3403211,4307.5,4306.9,0.234]
[1757380172337,0.8244,4307.5,4306.9,0.234]
[1757380172838,0.8244,4307.5,4307.0,0.3017]
[1757380173037,0.8244,4307.5,4306.9,0.5357]
[1757380173234,0.1977,4307.0,4306.9,0.4488]
[1757380173428,0.4942,4307.0,4306.9,0.9656]
[1757380174543,0.8244,4307.5,4307.4,0.7316]
[1757380174734,0.8244,4307.5,4307.4,0.4299]
[1757380175841,0.8244,4307.5,4307.4,0.7316]
[1757380176140,0.8244,4307.5,4307.4,0.2148]
[1757380181036,0.8244,4307.5,4307.1,0.3017]
[1757380181236,0.5279,4307.5,4307.0,0.3017]
[1757380181441,0.7066,4307.4,4307.3,0.2148]
[1757380183145,0.7066,4307.4,4307.3,0.7316]
[1757380185440,0.7066,4307.4,4307.3,0.4299]
[1757380187448,0.7066,4307.4,4307.3,0.7504]
[1757380188752,0.4942,4307.4,4307.3,0.7504]
[1757380189650,0.7037,4307.4,4307.3,0.7504]
[1757380192743,0.23748008,4307.9,4307.6,0.4021]
[1757380192744,0.3115,4307.7,4307.6,0.4021]
[1757380192943,0.3115,4307.7,4307.6,0.7226]
[1757380194448,0.31498008,4307.9,4307.7,0.3205]
[1757380194647,0.31498008,4307.9,4307.8,0.7226]
[1757380195548,0.00348008,4307.9,4307.8,0.7226]
[1757380196046,0.00348008,4307.9,4307.8,8.16253]
[1757380196545,0.00348008,4307.9,4307.8,8.39653]
[1757380197952,0.00348008,4307.9,4307.8,8.1644]
[1757380201253,0.31498008,4307.9,4307.8,4.1644]
[1757380201460,0.52898008,4307.9,4307.8,4.1644]
[1757380202455,0.52898008,4307.9,4307.8,5.42946819]
[1757380203055,0.31498008,4307.9,4307.8,5.42946819]
[1757380203259,0.00348008,4307.9,4307.8,5.42946819]
[1757380203551,0.73848008,4307.9,4307.8,3.4087]
[1757380203859,0.73848008,4307.9,4307.8,0.234]
[1757380204250,0.73848008,4307.9,4307.8,0.4349]
[1757380205552,0.73848008,4307.9,4307.8,0.234]
[1757380207056,0.73848008,4307.9,4307.4,1.26506819]
[1757380207264,0.4235,4306.6,4306.5,0.2009]
[1757380207459,0.4235,4306.6,4306.5,0.4349]
[1757380207460,0.735,4306.6,4306.5,0.4349]
[1757380207656,0.735,4306.6,4306.5,0.9566]
[1757380208655,0.735,4306.6,4306.5,0.6361]
[1757380210363,0.735,4306.6,4306.5,0.9566]
[1757380214364,3.3366,4307.5,4306.8,0.7226]
[1757380214566,0.234,4307.8,4307.2,1.98766819]
[1757380214866,0.5255,4307.6,4307.5,1.98766819]
[1757380215860,0.735,4307.6,4307.5,0.4021]
[1757380216164,0.8638,4307.5,4307.4,0.234]
[1757380216555,0.8638,4307.5,4307.0,0.3205]
[1757380216757,0.8638,4307.5,4307.1,0.234]
[1757380216961,0.1288,4307.5,4307.3,0.2009]
[1757380217266,0.7241,4307.4,4307.3,0.2009]
[1757380218169,0.1182,4307.0,4306.9,3.4087]
[1757380218382,0.8423,4307.0,4306.9,3.6427]
[1757380219074,0.8423,4307.0,4306.9,4.1329]
[1757380220272,0.8423,4307.0,4306.9,5.39796819]
[1757380220673,0.7241,4307.0,4306.9,5.39796819]
[1757380221371,0.5122,4307.0,4306.9,5.39796819]
[1757380221875,0.3021,4307.0,4306.9,5.39796819]
[1757380222575,0.5122,4307.0,4306.9,5.39796819]
[1757380225579,0.7241,4307.0,4306.9,5.39796819]
[1757380225875,0.8423,4307.0,4306.9,5.39796819]
[1757380226884,0.5122,4307.0,4306.9,5.39796819]
[1757380228077,0.3021,4307.0,4306.9,5.39796819]
[1757380229285,0.5122,4307.0,4306.9,5.39796819]
[1757380232078,0.3021,4307.0,4306.9,5.39796819]
[1757380232287,0.3021,4307.4,4307.1,0.2926]
[1757380232586,0.3021,4307.4,4307.3,1.95616819]
[1757380232978,0.1288,4308.0,4307.4,0.2926]
[1757380233174,0.95625,4307.8,4307.7,0.3985]
[1757380233378,0.95625,4307.8,4307.7,0.6911]
[1757380233784,0.7241,4307.8,4307.7,0.6911]
[1757380234589,0.7241,4307.8,4307.5,0.234]
[1757380234786,0.3021,4307.7,4307.5,0.5266]
[1757380234981,0.7241,4307.6,4307.5,0.4349]
[1757380236485,0.7241,4307.6,4307.5,0.9251]
[1757380238085,0.30558008,4307.9,4307.8,0.3985]
[1757380238285,0.51568008,4307.9,4307.8,0.6911]
[1757380238587,1.24243134,4307.9,4307.8,0.3985]
[1757380239480,1.24243134,4307.9,4307.8,0.6911]
[1757380239681,0.72758008,4307.9,4307.8,0.6911]
[1757380240182,0.72758008,4307.9,4307.8,0.3985]
[1757380240689,0.422,4307.6,4307.5,0.234]
[1757380240980,0.7241,4307.6,4307.5,0.234]
[1757380241987,0.7241,4307.6,4307.5,0.4349]
[1757380242381,0.7241,4307.6,4307.5,0.9251]
[1757380248094,0.7241,4307.6,4307.5,0.6325]
[1757380248987,0.7241,4307.6,4307.5,0.4349]
[1757380249191,0.7241,4307.6,4307.5,0.234]
[1757380251098,0.7241,4307.6,4307.5,0.4449]
[1757380251997,0.7241,4307.6,4307.5,0.9719]
[1757380253198,1.23930202,4307.6,4307.5,0.9719]
[1757380257198,0.7241,4307.6,4307.5,0.9719]
[1757380258298,1.23706138,4307.6,4307.5,0.9719]
[1757380260492,1.23706138,4307.6,4307.5,0.6602]
[1757380260686,0.4299,4307.4,4307.3,1.24900143]
[1757380260890,0.7248,4307.3,4307.2,1.48300143]
[1757380261087,0.7248,4307.3,4307.1,1.24900143]
[1757380261088,0.7248,4307.2,4307.1,1.24900143]
[1757380261307,0.7248,4307.2,4307.0,1.24900143]
[1757380261308,0.2949,4307.1,4307.0,1.24900143]
[1757380261598,0.4299,4307.1,4306.9,4.69080143]
[1757380261796,0.1183,4307.5,4306.6,1.24900143]
[1757380261797,2.62113972,4307.0,4306.6,1.24900143]
[1757380261988,2.62113972,4307.0,4306.5,1.24900143]
[1757380261989,0.2949,4306.6,4306.5,1.24900143]
[1757380262187,0.7248,4306.6,4306.4,1.48300143]
[1757380262392,0.8431,4306.5,4306.4,1.48300143]
[1757380263197,0.8431,4306.5,4306.4,0.4449]
[1757380263700,0.8431,4306.5,4306.4,0.6602]
[1757380264601,0.8431,4306.5,4306.4,0.2109]
[1757380264796,0.8431,4306.5,4306.4,1.24845507]
[1757380265396,0.8431,4306.5,4306.3,1.48245507]
[1757380265597,0.7248,4306.4,4306.3,1.48245507]
[1757380265796,0.7248,4306.4,4306.3,1.24845507]
[1757380265997,0.2949,4306.3,4306.0,1.24845507]
[1757380266296,0.23222,4306.4,4305.5,0.3117]
[1757380266297,0.4299,4305.8,4305.5,1.24845507]
[1757380266502,0.1183,4306.0,4305.3,4.45625507]
[1757380266503,0.2949,4305.4,4305.3,4.45625507]
[1757380266703,0.7248,4305.4,4305.3,4.45625507]
[1757380267004,0.7248,4305.4,4305.3,3.2078]
[1757380267305,0.7248,4305.4,4305.3,3.4187]
[1757380267506,0.7248,4305.4,4305.3,3.9457]
[1757380268005,0.5482,4306.0,4305.9,0.2109]
[1757380268403,0.78044,4306.0,4305.9,0.2109]
[1757380268603,1.07534,4306.0,4305.9,0.2109]
[1757380268804,0.8431,4306.0,4305.9,0.2109]
[1757380269003,0.8431,4306.0,4305.9,0.7379]
[1757380269207,0.2949,4306.3,4305.9,0.4262]
[1757380269394,0.2949,4306.3,4305.8,3.2078]
[1757380269395,0.5091,4306.3,4306.2,0.7379]
[1757380271196,0.7248,4306.3,4306.2,0.7379]
[1757380271806,0.7248,4306.3,4306.2,0.4262]
[1757380272006,0.2142,4305.6,4305.5,1.77105507]
[1757380272212,0.7248,4305.6,4305.5,0.9719]
[1757380272509,0.7248,4305.6,4305.5,0.6602]
[1757380273108,0.7248,4305.6,4305.5,0.4449]
[1757380274512,0.7248,4305.6,4305.5,0.6602]
[1757380275713,0.7248,4305.6,4305.5,0.4449]
[1757380276214,0.7248,4305.6,4305.5,0.2109]
[1757380276608,0.7046,4305.4,4305.3,0.4439]
[1757380278003,0.7046,4305.4,4305.3,0.2099]
[1757380278218,0.7046,4305.3,4305.2,3.4418]
[1757380278817,0.7046,4305.3,4305.2,3.2078]
[1757380279318,0.7046,4305.3,4305.2,3.4177]
[1757380279915,0.7046,4305.3,4305.2,3.633]
[1757380282118,0.7046,4305.3,4305.2,3.9325]
[1757380282818,0.7046,4305.3,4305.2,3.633]
[1757380283019,0.7046,4305.3,4305.2,3.9325]
[1757380283921,0.5304,4305.0,4304.9,0.2099]
[1757380284114,0.8298,4305.0,4304.9,0.234]
[1757380284314,0.8298,4305.0,4304.9,0.4439]
[1757380284513,0.8298,4305.0,4304.9,0.2099]
[1757380284813,0.8298,4305.0,4304.9,0.4439]
[1757380285014,0.8298,4305.0,4304.9,0.6592]
[1757380285216,0.8298,4305.0,4304.9,0.9587]
[1757380289732,0.8298,4305.0,4304.9,0.4439]
[1757380290222,0.8298,4305.0,4304.9,0.9587]
[1757380290727,0.5091,4305.0,4304.9,0.9587]
[1757380295622,0.1252,4305.5,4304.9,0.9587]
[1757380295827,0.1252,4305.5,4305.4,0.2099]
[1757380295828,0.5304,4305.5,4305.4,0.2099]
[1757380296326,0.8298,4305.5,4305.4,0.2099]
[1757380296526,0.8298,4305.5,4305.1,0.2995]
[1757380296726,0.2994,4305.4,4305.1,0.234]
[1757380296928,0.7046,4305.4,4305.3,0.2099]
[1757380303125,1.21737559,4305.4,4305.3,0.2099]
[1757380305233,1.21737559,4305.4,4305.1,0.234]
[1757380305534,0.7046,4304.9,4304.8,1.45835507]
[1757380306029,0.7046,4304.9,4304.8,1.67365507]
[1757380306226,0.7046,4304.9,4304.8,1.24845507]
[1757380306533,0.6969,4304.8,4304.7,1.24845507]
[1757380306724,0.3001,4304.7,4304.5,1.24845507]
[1757380306926,0.814,4304.5,4304.4,1.45745507]
[1757380307333,0.814,4304.5,4304.4,0.7301]
[1757380307529,0.814,4304.5,4304.4,1.9801902]
[1757380307730,0.5139,4304.5,4304.2,1.2500902]
[1757380307930,0.6969,4304.3,4304.2,1.4590902]
[1757380309424,0.6969,4304.3,4304.2,0.209]
[1757380311432,0.6969,4304.3,4304.2,0.5154]
[1757380311632,0.6969,4304.3,4304.2,0.209]
[1757380314435,0.6969,4304.3,4304.2,1.45852311]
[1757380315438,0.3968,4303.9,4303.8,1.24952311]
[1757380315643,0.6969,4303.9,4303.6,1.24952311]
[1757380315835,0.6969,4303.4,4303.3,1.69252311]
[1757380316433,0.6969,4303.4,4303.3,0.443]
[1757380316632,0.6969,4303.4,4303.3,0.7494]
[1757380316829,0.6969,4303.4,4303.3,0.9641]
[1757380317031,0.6969,4303.4,4303.3,0.6577]
[1757380317238,0.6969,4303.4,4303.3,0.443]
[1757380317438,0.6969,4303.3,4303.2,0.209]
[1757380317638,0.6969,4303.3,4303.2,0.7301]
[1757380320438,0.6969,4303.3,4303.2,0.4237]
[1757380321134,0.6969,4303.3,4303.2,0.7301]
[1757380321540,0.6969,4302.9,4302.8,34.89015023]
[1757380321741,0.6969,4302.9,4302.8,35.43055023]
[1757380322049,0.6969,4302.9,4302.8,2.39025023]
[1757380322534,0.4996,4302.9,4302.8,2.39025023]
[1757380322937,0.3001,4302.9,4302.8,2.39025023]
[1757380323139,0.00348416,4303.3,4302.8,2.39025023]
[1757380323140,0.00348416,4303.3,4303.1,0.4237]
[1757380323447,0.00348416,4303.3,4303.2,5.66757531]
[1757380323639,0.00348416,4303.3,4303.2,6.91447335]
[1757380324341,0.00348416,4303.3,4303.2,6.60710109]
[1757380328656,0.00348416,4303.3,4303.2,5.36020305]
[1757380330459,0.00348416,4303.3,4303.2,6.60710109]
[1757380332360,0.00348416,4303.3,4303.2,5.36020305]
[1757380336860,0.00348416,4303.3,4303.2,4.1719]
[1757380337058,0.00348416,4303.3,4303.2,5.36020305]
[1757380338668,3.2078,4304.1,4304.0,0.4185]
[1757380338669,0.3044,4304.1,4304.0,0.4185]
[1757380338861,0.1171,4304.5,4304.0,5.40696995]
[1757380339070,0.2036,4304.3,4304.2,1.18830305]
[1757380339260,0.508,4304.3,4304.2,2.13830305]
[1757380345964,0.7104,4304.3,4304.2,0.4185]
[1757380346170,0.7104,4304.3,4304.2,0.95]
[1757380346671,0.7104,4304.3,4304.2,0.4389]
[1757380346973,0.7104,4304.3,4304.2,0.234]
[1757380347769,0.7104,4304.3,4304.2,0.6525]
[1757380347963,0.7104,4304.3,4304.2,0.95]
[1757380348675,0.508,4304.3,4304.2,2.13830305]
[1757380348974,0.8275,4305.0,4304.9,0.2049]
[1757380349174,1.34066311,4305.0,4304.9,0.2049]
[1757380349471,1.34066311,4305.0,4304.9,0.48910188]
[1757380350272,0.51316311,4305.0,4304.9,1.00020188]
[1757380350467,3.5122,4305.6,4304.9,0.70260763]
[1757380350769,3.9182,4305.6,4305.5,1.90430305]
[1757380351074,4.43120659,4305.6,4305.5,2.18841068]
[1757380351978,5.61950964,4305.6,4305.5,0.28410763]
[1757380352174,0.406,4305.2,4305.1,0.234]
[1757380352368,0.7104,4305.2,4305.1,0.51799532]
[1757380353771,4.406,4305.2,4304.5,3.2078]
[1757380353976,1.18830305,4305.3,4304.7,0.234]
[1757380353977,0.7104,4304.8,4304.7,0.234]
[1757380354273,0.7104,4304.8,4304.7,0.51796783]
[1757380354467,0.7104,4304.8,4304.7,0.28396783]
[1757380356876,0.7104,4304.3,4304.2,0.234]